[Event "Late-Titled-Tuesday-Blitz-September-12-2023"]
[Site "Chess.com"]
[Date "2023.09.12"]
[Round "1"]
[White "kaanadayhamle"]
[Black "louis198"]
[Result "1-0"]
[WhiteElo "2413"]
[BlackElo "2705"]
[TimeControl "180+1"]
[EndTime "14:03:08 PDT"]
[Termination "kaanadayhamle won by resignation"]

1. Nf3 {[%clk 0:03:00.3]} 1... e6 {[%clk 0:03:00.6]} 2. g3 {[%clk 0:02:59.4]}
2... d5 {[%clk 0:02:58.6]} 3. Bg2 {[%clk 0:02:59.8]} 3... g6 {[%clk 0:02:59.4]}
4. O-O {[%clk 0:03:00.2]} 4... Bg7 {[%clk 0:02:59.9]} 5. c4 {[%clk 0:03:01]}
5... Ne7 {[%clk 0:03:00.6]} 6. cxd5 {[%clk 0:03:01.2]} 6... exd5 {[%clk
0:03:00.8]} 7. d4 {[%clk 0:03:01.8]} 7... O-O {[%clk 0:03:01.5]} 8. Nc3 {[%clk
0:03:02.4]} 8... Nbc6 {[%clk 0:03:01.9]} 9. Bg5 {[%clk 0:03:00.7]} 9... f6
{[%clk 0:03:01.4]} 10. Bf4 {[%clk 0:03:01.1]} 10... g5 {[%clk 0:03:01.6]} 11.
Be3 {[%clk 0:03:00.3]} 11... Nf5 {[%clk 0:03:00.9]} 12. Qb3 {[%clk 0:03:00.6]}
12... Nce7 {[%clk 0:03:00.8]} 13. Bd2 {[%clk 0:02:59.4]} 13... Kh8 {[%clk
0:03:00.4]} 14. Rfe1 {[%clk 0:02:56.3]} 14... c6 {[%clk 0:02:59.6]} 15. h3
{[%clk 0:02:52.1]} 15... Nd6 {[%clk 0:02:52.7]} 16. Rad1 {[%clk 0:02:50.9]}
16... Bf5 {[%clk 0:02:52.4]} 17. Na4 {[%clk 0:02:46.3]} 17... Bg6 {[%clk
0:02:45.4]} 18. Nc5 {[%clk 0:02:45.4]} 18... Qc8 {[%clk 0:02:18.1]} 19. Bb4
{[%clk 0:02:45]} 19... Nef5 {[%clk 0:02:15.1]} 20. Nd3 {[%clk 0:02:41.8]} 20...
Re8 {[%clk 0:02:14.8]} 21. g4 {[%clk 0:02:39.6]} 21... Nh4 {[%clk 0:02:13.6]}
22. Nxh4 {[%clk 0:02:36]} 22... gxh4 {[%clk 0:02:14.5]} 23. Bxd6 {[%clk
0:02:36]} 23... a5 {[%clk 0:02:11.5]} 24. Bh2 {[%clk 0:02:33.6]} 24... h5 {[%clk
0:02:10.9]} 25. Nf4 {[%clk 0:02:31.9]} 25... Be4 {[%clk 0:02:10.8]} 26. Nxh5
{[%clk 0:02:29.9]} 26... Bxg2 {[%clk 0:02:10.7]} 27. Kxg2 {[%clk 0:02:30.8]}
27... Re4 {[%clk 0:02:11.3]} 28. Nxg7 {[%clk 0:02:30.8]} 28... Kxg7 {[%clk
0:02:11.4]} 29. f3 {[%clk 0:02:31.5]} 29... Re7 {[%clk 0:02:10.2]} 30. e4 {[%clk
0:02:31.8]} 30... Qe8 {[%clk 0:02:09.6]} 31. e5 {[%clk 0:02:26.4]} 31... Kg8
{[%clk 0:02:07.1]} 32. Qe3 {[%clk 0:02:24.9]} 32... a4 {[%clk 0:02:04.4]} 33.
Qh6 {[%clk 0:02:22.7]} 1-0

[Event "Late-Titled-Tuesday-Blitz-September-12-2023"]
[Site "Chess.com"]
[Date "2023.09.12"]
[Round "1"]
[White "Perecke"]
[Black "BrandonJacobson"]
[Result "0-1"]
[WhiteElo "2496"]
[BlackElo "3052"]
[TimeControl "180+1"]
[EndTime "14:03:24 PDT"]
[Termination "BrandonJacobson won by resignation"]

1. e4 {[%clk 0:03:00.9]} 1... c5 {[%clk 0:02:59]} 2. Nf3 {[%clk 0:03:00.3]} 2...
d6 {[%clk 0:02:59.5]} 3. d3 {[%clk 0:03:00.7]} 3... Nf6 {[%clk 0:02:58.2]} 4. g3
{[%clk 0:03:00]} 4... g6 {[%clk 0:02:58.7]} 5. Bg2 {[%clk 0:03:00.3]} 5... Bg7
{[%clk 0:02:58.4]} 6. O-O {[%clk 0:03:00.7]} 6... O-O {[%clk 0:02:58.8]} 7. c3
{[%clk 0:03:01.2]} 7... Nc6 {[%clk 0:02:59.3]} 8. d4 {[%clk 0:03:00.5]} 8...
Nxe4 {[%clk 0:02:57.4]} 9. d5 {[%clk 0:02:56.2]} 9... Nb8 {[%clk 0:02:56.8]} 10.
Nbd2 {[%clk 0:02:55.5]} 10... Nf6 {[%clk 0:02:56.1]} 11. Nc4 {[%clk 0:02:49.5]}
11... b5 {[%clk 0:02:50.2]} 12. Ne3 {[%clk 0:02:49.5]} 12... Bb7 {[%clk
0:02:50.3]} 13. a4 {[%clk 0:02:46.9]} 13... a6 {[%clk 0:02:50.5]} 14. Nd2 {[%clk
0:02:37.1]} 14... Nbd7 {[%clk 0:02:49.4]} 15. c4 {[%clk 0:02:37.3]} 15... Ne5
{[%clk 0:02:25.6]} 16. cxb5 {[%clk 0:02:24.7]} 16... axb5 {[%clk 0:02:26.5]} 17.
f4 {[%clk 0:02:24.4]} 17... Nd3 {[%clk 0:02:26.1]} 18. Qb3 {[%clk 0:02:15.4]}
18... c4 {[%clk 0:02:13.2]} 19. Qc2 {[%clk 0:01:59.9]} 19... Qb6 {[%clk
0:02:08.3]} 20. Nb1 {[%clk 0:01:31.2]} 20... Nxc1 {[%clk 0:02:06]} 21. Qxc1
{[%clk 0:01:28.7]} 21... Ng4 {[%clk 0:02:06.4]} 0-1

[Event "Late-Titled-Tuesday-Blitz-September-12-2023"]
[Site "Chess.com"]
[Date "2023.09.12"]
[Round "1"]
[White "ShiroglanTalibov"]
[Black "Mindhunter08"]
[Result "1-0"]
[WhiteElo "2854"]
[BlackElo "2448"]
[TimeControl "180+1"]
[EndTime "14:03:25 PDT"]
[Termination "ShiroglanTalibov won by resignation"]

1. e4 {[%clk 0:03:00.9]} 1... e5 {[%clk 0:03:00.2]} 2. Nf3 {[%clk 0:03:00.3]}
2... Nc6 {[%clk 0:02:59]} 3. Bb5 {[%clk 0:03:00.2]} 3... a6 {[%clk 0:02:59.3]}
4. Ba4 {[%clk 0:03:00.3]} 4... Nf6 {[%clk 0:02:58.8]} 5. d4 {[%clk 0:03:00.5]}
5... exd4 {[%clk 0:02:49.3]} 6. O-O {[%clk 0:02:59.8]} 6... Be7 {[%clk
0:02:46.5]} 7. e5 {[%clk 0:02:59.7]} 7... Ne4 {[%clk 0:02:34.9]} 8. Nxd4 {[%clk
0:02:59.4]} 8... O-O {[%clk 0:02:29.8]} 9. Nf5 {[%clk 0:02:47.1]} 9... Nc5
{[%clk 0:02:28.6]} 10. Qg4 {[%clk 0:02:45.2]} 10... g6 {[%clk 0:02:27]} 11. Bxc6
{[%clk 0:02:45.1]} 11... dxc6 {[%clk 0:02:18.5]} 12. Nxe7+ {[%clk 0:02:44.7]}
12... Qxe7 {[%clk 0:02:18.8]} 13. Qg3 {[%clk 0:02:45.6]} 13... Bf5 {[%clk
0:02:12.4]} 14. Bg5 {[%clk 0:02:29.8]} 14... Qe6 {[%clk 0:02:07.6]} 15. Nd2
{[%clk 0:02:28.2]} 15... Qd5 {[%clk 0:01:59.5]} 16. Rfe1 {[%clk 0:02:12.9]}
16... Rfe8 {[%clk 0:01:52.1]} 17. c4 {[%clk 0:02:07.5]} 17... Qd3 {[%clk
0:01:50.4]} 18. Qh4 {[%clk 0:02:07.1]} 18... Ne6 {[%clk 0:01:47.1]} 19. Nf3
{[%clk 0:02:04.3]} 19... Be4 {[%clk 0:01:31.2]} 20. Rxe4 {[%clk 0:01:59.1]} 1-0

[Event "Late-Titled-Tuesday-Blitz-September-12-2023"]
[Site "Chess.com"]
[Date "2023.09.12"]
[Round "1"]
[White "campochess"]
[Black "simplerXiao"]
[Result "1-0"]
[WhiteElo "2132"]
[BlackElo "2508"]
[TimeControl "180+1"]
[EndTime "14:03:27 PDT"]
[Termination "campochess won by resignation"]

1. Nf3 {[%clk 0:02:52.6]} 1... d5 {[%clk 0:02:59.1]} 2. b3 {[%clk 0:02:52.5]}
2... f6 {[%clk 0:02:55.9]} 3. d4 {[%clk 0:02:51]} 3... e6 {[%clk 0:02:55]} 4.
Bb2 {[%clk 0:02:50.9]} 4... Bd6 {[%clk 0:02:55.3]} 5. g3 {[%clk 0:02:50.3]} 5...
Ne7 {[%clk 0:02:55.9]} 6. Bg2 {[%clk 0:02:50.1]} 6... O-O {[%clk 0:02:56.6]} 7.
O-O {[%clk 0:02:50]} 7... c5 {[%clk 0:02:57.3]} 8. c3 {[%clk 0:02:44.4]} 8...
Nbc6 {[%clk 0:02:57.5]} 9. Nbd2 {[%clk 0:02:44.4]} 9... Nf5 {[%clk 0:02:56]} 10.
e4 {[%clk 0:02:44]} 10... Nfe7 {[%clk 0:02:52.1]} 11. exd5 {[%clk 0:02:42.5]}
11... Nxd5 {[%clk 0:02:51.4]} 12. c4 {[%clk 0:02:41.8]} 12... Ndb4 {[%clk
0:02:50.6]} 13. Ne4 {[%clk 0:02:33.3]} 13... cxd4 {[%clk 0:02:44.7]} 14. Nxd6
{[%clk 0:02:30.8]} 14... Qxd6 {[%clk 0:02:43.8]} 15. Nxd4 {[%clk 0:02:30.5]}
15... Nxd4 {[%clk 0:02:35.3]} 16. Bxd4 {[%clk 0:02:27.4]} 16... Nc6 {[%clk
0:02:30.5]} 17. Be3 {[%clk 0:02:26.9]} 17... Qc7 {[%clk 0:02:28.7]} 18. Qh5
{[%clk 0:02:25.4]} 18... g6 {[%clk 0:02:22.5]} 19. Qe2 {[%clk 0:02:24.4]} 19...
Rd8 {[%clk 0:02:15.7]} 20. Rad1 {[%clk 0:02:23.8]} 20... Bd7 {[%clk 0:02:14.4]}
21. Rd2 {[%clk 0:02:22.5]} 21... Be8 {[%clk 0:02:14.5]} 22. Rfd1 {[%clk
0:02:22.4]} 22... Bf7 {[%clk 0:02:15.1]} 23. Qf3 {[%clk 0:02:15.9]} 23... a6
{[%clk 0:01:59.7]} 24. Qxf6 {[%clk 0:02:13.9]} 24... e5 {[%clk 0:01:50.9]} 25.
Bxc6 {[%clk 0:02:08.1]} 25... Rxd2 {[%clk 0:01:50.2]} 26. Rxd2 {[%clk
0:02:05.3]} 26... bxc6 {[%clk 0:01:49.8]} 27. Bh6 {[%clk 0:01:59.9]} 1-0

[Event "Late-Titled-Tuesday-Blitz-September-12-2023"]
[Site "Chess.com"]
[Date "2023.09.12"]
[Round "1"]
[White "PepeCuenca"]
[Black "Jaka_Brilej"]
[Result "1-0"]
[WhiteElo "2773"]
[BlackElo "2423"]
[TimeControl "180+1"]
[EndTime "14:03:48 PDT"]
[Termination "PepeCuenca won by resignation"]

1. c4 {[%clk 0:03:00.9]} 1... e6 {[%clk 0:02:56]} 2. Nf3 {[%clk 0:03:00.3]} 2...
d5 {[%clk 0:02:56]} 3. d4 {[%clk 0:03:00.3]} 3... c6 {[%clk 0:02:54]} 4. e3
{[%clk 0:02:56.6]} 4... f5 {[%clk 0:02:52.2]} 5. Be2 {[%clk 0:02:51.9]} 5... Nf6
{[%clk 0:02:52.1]} 6. O-O {[%clk 0:02:51.6]} 6... Bd6 {[%clk 0:02:51.3]} 7. b3
{[%clk 0:02:51.7]} 7... Qe7 {[%clk 0:02:51.5]} 8. a4 {[%clk 0:02:51.7]} 8... O-O
{[%clk 0:02:46.1]} 9. Ba3 {[%clk 0:02:51.8]} 9... Bxa3 {[%clk 0:02:46.2]} 10.
Nxa3 {[%clk 0:02:52]} 10... a5 {[%clk 0:02:43.4]} 11. Nc2 {[%clk 0:02:51]} 11...
Ne4 {[%clk 0:02:38.4]} 12. Nce1 {[%clk 0:02:40.7]} 12... Na6 {[%clk 0:02:13.2]}
13. Nd3 {[%clk 0:02:29.8]} 13... Nb4 {[%clk 0:02:06.4]} 14. Nfe5 {[%clk
0:02:21.4]} 14... Bd7 {[%clk 0:02:00.7]} 15. f3 {[%clk 0:02:09]} 15... Nf6
{[%clk 0:01:36.9]} 16. Nxb4 {[%clk 0:01:48.5]} 16... Qxb4 {[%clk 0:01:35.5]} 17.
c5 {[%clk 0:01:35.6]} 17... Be8 {[%clk 0:01:34.7]} 18. Nd3 {[%clk 0:01:28.2]}
1-0

[Event "Late-Titled-Tuesday-Blitz-September-12-2023"]
[Site "Chess.com"]
[Date "2023.09.12"]
[Round "1"]
[White "S-Fazulyanov"]
[Black "Vladimir_Zakhartsov"]
[Result "0-1"]
[WhiteElo "2456"]
[BlackElo "2876"]
[TimeControl "180+1"]
[EndTime "14:04:01 PDT"]
[Termination "Vladimir_Zakhartsov won by resignation"]

1. e4 {[%clk 0:02:59.8]} 1... c5 {[%clk 0:03:00]} 2. Nf3 {[%clk 0:02:59.9]} 2...
e6 {[%clk 0:03:00]} 3. c4 {[%clk 0:03:00]} 3... Nc6 {[%clk 0:02:59.7]} 4. Nc3
{[%clk 0:03:00.1]} 4... Nf6 {[%clk 0:02:59.8]} 5. Be2 {[%clk 0:03:00.8]} 5... d5
{[%clk 0:02:59.2]} 6. exd5 {[%clk 0:03:01.4]} 6... exd5 {[%clk 0:03:00.1]} 7. d4
{[%clk 0:03:02]} 7... Be6 {[%clk 0:02:50.4]} 8. cxd5 {[%clk 0:02:59]} 8... Nxd5
{[%clk 0:02:49]} 9. O-O {[%clk 0:02:58.9]} 9... Nxc3 {[%clk 0:02:39]} 10. bxc3
{[%clk 0:02:59.5]} 10... cxd4 {[%clk 0:02:38.1]} 11. cxd4 {[%clk 0:03:00.2]}
11... Be7 {[%clk 0:02:36.9]} 12. Rb1 {[%clk 0:02:59.1]} 12... Qd7 {[%clk
0:02:30.5]} 13. Bb5 {[%clk 0:02:55.4]} 13... Qd5 {[%clk 0:02:20.4]} 14. Ne5
{[%clk 0:02:33.6]} 14... O-O {[%clk 0:02:09.6]} 15. Bc4 {[%clk 0:02:31.9]} 15...
Qe4 {[%clk 0:02:05.4]} 16. Bxe6 {[%clk 0:02:17.8]} 16... Qxb1 {[%clk 0:01:51.4]}
17. Qg4 {[%clk 0:01:21]} 17... Nxe5 {[%clk 0:01:44.8]} 18. dxe5 {[%clk
0:01:19.1]} 18... fxe6 {[%clk 0:01:42.3]} 19. Bh6 {[%clk 0:01:18.6]} 19... Qg6
{[%clk 0:01:40.9]} 0-1

[Event "Late-Titled-Tuesday-Blitz-September-12-2023"]
[Site "Chess.com"]
[Date "2023.09.12"]
[Round "1"]
[White "dretch"]
[Black "lgsalazar94"]
[Result "1-0"]
[WhiteElo "2856"]
[BlackElo "2451"]
[TimeControl "180+1"]
[EndTime "14:04:23 PDT"]
[Termination "dretch won by resignation"]

1. d4 {[%clk 0:02:59.5]} 1... Nf6 {[%clk 0:02:59.1]} 2. c4 {[%clk 0:02:59]} 2...
g6 {[%clk 0:02:59.5]} 3. Nc3 {[%clk 0:02:59.3]} 3... d5 {[%clk 0:02:59.8]} 4. e3
{[%clk 0:02:57.4]} 4... Bg7 {[%clk 0:02:59.5]} 5. Qb3 {[%clk 0:02:57.7]} 5...
dxc4 {[%clk 0:02:48.3]} 6. Bxc4 {[%clk 0:02:57.3]} 6... O-O {[%clk 0:02:48.1]}
7. Nf3 {[%clk 0:02:57.5]} 7... c5 {[%clk 0:02:48.4]} 8. O-O {[%clk 0:02:53.2]}
8... Nbd7 {[%clk 0:02:41.7]} 9. Rd1 {[%clk 0:02:51.2]} 9... cxd4 {[%clk
0:02:38.6]} 10. exd4 {[%clk 0:02:50.5]} 10... Nb6 {[%clk 0:02:28.3]} 11. h3
{[%clk 0:02:36.4]} 11... Nxc4 {[%clk 0:02:17.8]} 12. Qxc4 {[%clk 0:02:36.1]}
12... a6 {[%clk 0:01:55.8]} 13. d5 {[%clk 0:02:31.5]} 13... b5 {[%clk
0:01:55.4]} 14. Qh4 {[%clk 0:02:31.4]} 14... h5 {[%clk 0:01:15.2]} 15. d6 {[%clk
0:02:19.2]} 15... exd6 {[%clk 0:01:10.5]} 16. Bg5 {[%clk 0:02:18.6]} 16... Bb7
{[%clk 0:01:07.9]} 17. Rd4 {[%clk 0:02:12.8]} 17... Re8 {[%clk 0:00:58.6]} 18.
Rf4 {[%clk 0:02:09]} 18... Re6 {[%clk 0:00:56.5]} 19. Nd4 {[%clk 0:02:08.9]} 1-0

[Event "Late-Titled-Tuesday-Blitz-September-12-2023"]
[Site "Chess.com"]
[Date "2023.09.12"]
[Round "1"]
[White "laskakid"]
[Black "ValeriyGrinev"]
[Result "0-1"]
[WhiteElo "2226"]
[BlackElo "2543"]
[TimeControl "180+1"]
[EndTime "14:04:26 PDT"]
[Termination "ValeriyGrinev won by resignation"]

1. d4 {[%clk 0:03:00.9]} 1... d5 {[%clk 0:02:58.9]} 2. c4 {[%clk 0:03:00.4]}
2... e6 {[%clk 0:02:59.1]} 3. Nc3 {[%clk 0:03:00.2]} 3... Nf6 {[%clk 0:02:58]}
4. Bg5 {[%clk 0:03:00.2]} 4... Be7 {[%clk 0:02:57.1]} 5. e3 {[%clk 0:03:00.1]}
5... h6 {[%clk 0:02:56.4]} 6. Bxf6 {[%clk 0:03:00.1]} 6... Bxf6 {[%clk
0:02:56.5]} 7. Nf3 {[%clk 0:02:59]} 7... O-O {[%clk 0:02:56.5]} 8. Rc1 {[%clk
0:02:59.1]} 8... c6 {[%clk 0:02:55.3]} 9. Qc2 {[%clk 0:02:58.7]} 9... Nd7 {[%clk
0:02:54.9]} 10. Bd3 {[%clk 0:02:58.4]} 10... dxc4 {[%clk 0:02:54.9]} 11. Bxc4
{[%clk 0:02:58.8]} 11... e5 {[%clk 0:02:55.8]} 12. O-O {[%clk 0:02:56]} 12...
exd4 {[%clk 0:02:55.2]} 13. exd4 {[%clk 0:02:55.4]} 13... Nb6 {[%clk 0:02:55.7]}
14. Bb3 {[%clk 0:02:53.6]} 14... Bg4 {[%clk 0:02:55]} 15. Ne5 {[%clk 0:02:10.1]}
15... Qxd4 {[%clk 0:02:53.9]} 16. Nxg4 {[%clk 0:02:09.6]} 16... Qxg4 {[%clk
0:02:53.7]} 17. Ne4 {[%clk 0:02:02.6]} 17... Bd4 {[%clk 0:02:48]} 18. Nd6 {[%clk
0:01:41.7]} 18... Rad8 {[%clk 0:02:37.8]} 19. Nxb7 {[%clk 0:01:34.6]} 19... Rde8
{[%clk 0:02:27.8]} 20. Qxc6 {[%clk 0:01:13.3]} 20... Re2 {[%clk 0:02:22.2]} 21.
Nd6 {[%clk 0:00:55.7]} 21... Qf4 {[%clk 0:02:18.6]} 22. Nxf7 {[%clk 0:00:29.7]}
22... Rxf7 {[%clk 0:02:12.2]} 23. Qe8+ {[%clk 0:00:28.6]} 23... Rxe8 {[%clk
0:02:11.3]} 0-1

[Event "Late-Titled-Tuesday-Blitz-September-12-2023"]
[Site "Chess.com"]
[Date "2023.09.12"]
[Round "1"]
[White "valemava"]
[Black "DenishevM"]
[Result "1-0"]
[WhiteElo "2345"]
[BlackElo "2616"]
[TimeControl "180+1"]
[EndTime "14:04:28 PDT"]
[Termination "valemava won by resignation"]

1. c4 {[%clk 0:03:00.9]} 1... Nf6 {[%clk 0:02:04]} 2. b4 {[%clk 0:02:50.8]} 2...
e6 {[%clk 0:01:58.9]} 3. a3 {[%clk 0:02:50]} 3... d5 {[%clk 0:01:59.2]} 4. cxd5
{[%clk 0:02:49.2]} 4... exd5 {[%clk 0:01:59.1]} 5. Bb2 {[%clk 0:02:48.8]} 5...
Bf5 {[%clk 0:01:58.8]} 6. d3 {[%clk 0:02:48.6]} 6... c6 {[%clk 0:01:58.8]} 7.
Nf3 {[%clk 0:02:48.6]} 7... Bd6 {[%clk 0:01:58.7]} 8. g3 {[%clk 0:02:48.5]} 8...
O-O {[%clk 0:01:58.8]} 9. Bg2 {[%clk 0:02:48.8]} 9... Nbd7 {[%clk 0:01:59.4]}
10. O-O {[%clk 0:02:48.9]} 10... Re8 {[%clk 0:01:59.7]} 11. Re1 {[%clk
0:02:48.6]} 11... a5 {[%clk 0:01:59.8]} 12. Qb3 {[%clk 0:02:42.2]} 12... Qb6
{[%clk 0:01:56.3]} 13. Nd4 {[%clk 0:02:33.7]} 13... Bg6 {[%clk 0:01:51.8]} 14.
bxa5 {[%clk 0:02:31.7]} 14... Qxb3 {[%clk 0:01:43.5]} 15. Nxb3 {[%clk
0:02:32.6]} 15... Bxd3 {[%clk 0:01:41.1]} 16. Nc3 {[%clk 0:02:30.8]} 16... Bc4
{[%clk 0:01:39.6]} 17. Nd2 {[%clk 0:02:29.4]} 17... Ba6 {[%clk 0:01:35.9]} 18.
e4 {[%clk 0:02:25.1]} 18... d4 {[%clk 0:01:32.1]} 19. Na4 {[%clk 0:02:24.4]}
19... Bb5 {[%clk 0:01:27.7]} 20. Nb6 {[%clk 0:02:21.2]} 20... Nxb6 {[%clk
0:01:24.2]} 21. axb6 {[%clk 0:02:22.1]} 21... Bc5 {[%clk 0:01:24.3]} 22. Nb3
{[%clk 0:02:16.4]} 22... Bxb6 {[%clk 0:01:24.2]} 23. Bxd4 {[%clk 0:02:15.9]}
23... Ra6 {[%clk 0:01:11.2]} 24. Bxb6 {[%clk 0:02:14.4]} 24... Rxb6 {[%clk
0:01:12.1]} 25. Nc5 {[%clk 0:02:14.4]} 25... Re5 {[%clk 0:01:09.4]} 26. Rec1
{[%clk 0:02:12.7]} 26... g5 {[%clk 0:01:08.2]} 27. Rab1 {[%clk 0:02:10.3]} 27...
Ne8 {[%clk 0:00:36.1]} 28. Nd7 {[%clk 0:02:06.5]} 1-0

[Event "Late-Titled-Tuesday-Blitz-September-12-2023"]
[Site "Chess.com"]
[Date "2023.09.12"]
[Round "1"]
[White "APOKALIPSA13"]
[Black "HamedWafa4"]
[Result "1-0"]
[WhiteElo "2267"]
[BlackElo "2535"]
[TimeControl "180+1"]
[EndTime "14:04:46 PDT"]
[Termination "APOKALIPSA13 won by resignation"]

1. e4 {[%clk 0:03:00.2]} 1... e5 {[%clk 0:02:59.9]} 2. Nf3 {[%clk 0:02:59.4]}
2... Nc6 {[%clk 0:03:00.4]} 3. d4 {[%clk 0:02:57.7]} 3... exd4 {[%clk
0:03:00.1]} 4. c3 {[%clk 0:02:56.2]} 4... d5 {[%clk 0:02:52]} 5. exd5 {[%clk
0:02:55.2]} 5... Qxd5 {[%clk 0:02:52.5]} 6. cxd4 {[%clk 0:02:52.1]} 6... Bg4
{[%clk 0:02:51.7]} 7. Be2 {[%clk 0:02:50.8]} 7... Bb4+ {[%clk 0:02:28.6]} 8. Nc3
{[%clk 0:02:45.6]} 8... Bxf3 {[%clk 0:02:27.6]} 9. Bxf3 {[%clk 0:02:44.1]} 9...
Qc4 {[%clk 0:02:26.7]} 10. Bxc6+ {[%clk 0:02:42.4]} 10... bxc6 {[%clk
0:02:23.7]} 11. Qe2+ {[%clk 0:02:41.8]} 11... Qxe2+ {[%clk 0:02:23.3]} 12. Kxe2
{[%clk 0:02:42.7]} 12... O-O-O {[%clk 0:02:21.3]} 13. a3 {[%clk 0:02:40]} 13...
Bxc3 {[%clk 0:02:13.2]} 14. bxc3 {[%clk 0:02:40.9]} 14... Nf6 {[%clk 0:02:13.2]}
15. Kd3 {[%clk 0:02:33.1]} 15... c5 {[%clk 0:02:10.9]} 16. Kc4 {[%clk
0:02:30.8]} 16... cxd4 {[%clk 0:02:10.7]} 17. cxd4 {[%clk 0:02:31.4]} 17... Rhe8
{[%clk 0:02:11.2]} 18. Be3 {[%clk 0:02:23.6]} 18... Nd5 {[%clk 0:02:07.9]} 19.
Rhe1 {[%clk 0:02:21.6]} 19... Nb6+ {[%clk 0:02:07.6]} 20. Kc3 {[%clk 0:02:18.9]}
20... Re6 {[%clk 0:02:07.7]} 21. Rac1 {[%clk 0:02:15.9]} 21... Rde8 {[%clk
0:02:03.3]} 22. Bd2 {[%clk 0:02:11.1]} 22... Nd5+ {[%clk 0:02:01.1]} 23. Kd3
{[%clk 0:02:10.1]} 23... Nf4+ {[%clk 0:01:57.3]} 24. Bxf4 {[%clk 0:02:00]} 24...
Rxe1 {[%clk 0:01:55.7]} 25. Rxc7+ {[%clk 0:02:00]} 25... Kd8 {[%clk 0:01:56.4]}
26. Rxa7 {[%clk 0:01:58.5]} 26... R8e7 {[%clk 0:01:38.9]} 27. Ra8+ {[%clk
0:01:56.6]} 27... Kd7 {[%clk 0:01:39]} 28. Be3 {[%clk 0:01:53.5]} 28... Rh1
{[%clk 0:01:37.5]} 29. a4 {[%clk 0:01:21]} 29... Rxh2 {[%clk 0:01:36.7]} 30.
Ra7+ {[%clk 0:01:20.1]} 30... Ke6 {[%clk 0:01:35.2]} 31. d5+ {[%clk 0:01:14.9]}
31... Kd6 {[%clk 0:01:30.7]} 32. Bf4+ {[%clk 0:01:13]} 32... Re5 {[%clk
0:01:28.9]} 33. Bxh2 {[%clk 0:01:09.4]} 1-0

[Event "Late-Titled-Tuesday-Blitz-September-12-2023"]
[Site "Chess.com"]
[Date "2023.09.12"]
[Round "1"]
[White "Defend1r"]
[Black "miraitrunks"]
[Result "1-0"]
[WhiteElo "2523"]
[BlackElo "2115"]
[TimeControl "180+1"]
[EndTime "14:04:53 PDT"]
[Termination "Defend1r won by resignation"]

1. e4 {[%clk 0:02:59.6]} 1... c5 {[%clk 0:03:00.2]} 2. Nf3 {[%clk 0:02:59.6]}
2... d6 {[%clk 0:02:59.5]} 3. Bb5+ {[%clk 0:02:58.9]} 3... Bd7 {[%clk
0:02:58.3]} 4. Bxd7+ {[%clk 0:02:58.6]} 4... Qxd7 {[%clk 0:02:57.8]} 5. c4
{[%clk 0:02:57.5]} 5... Nc6 {[%clk 0:02:58.1]} 6. d4 {[%clk 0:02:56.1]} 6...
cxd4 {[%clk 0:02:57.7]} 7. Nxd4 {[%clk 0:02:56.2]} 7... g6 {[%clk 0:02:58]} 8.
Nc3 {[%clk 0:02:51.8]} 8... Bg7 {[%clk 0:02:57.2]} 9. Be3 {[%clk 0:02:52.1]}
9... Nf6 {[%clk 0:02:55.8]} 10. h3 {[%clk 0:02:52.2]} 10... O-O {[%clk
0:02:55.2]} 11. O-O {[%clk 0:02:50.8]} 11... Rac8 {[%clk 0:02:53.8]} 12. b3
{[%clk 0:02:50.6]} 12... a6 {[%clk 0:02:48.2]} 13. a4 {[%clk 0:02:48.4]} 13...
Nb4 {[%clk 0:02:43.5]} 14. Rc1 {[%clk 0:02:35.3]} 14... Rc7 {[%clk 0:02:38.6]}
15. Nd5 {[%clk 0:02:22.4]} 15... Nbxd5 {[%clk 0:02:28.9]} 16. exd5 {[%clk
0:02:22.4]} 16... Rfc8 {[%clk 0:02:28.9]} 17. Qf3 {[%clk 0:02:17.6]} 17... e5
{[%clk 0:00:52.6]} 18. dxe6 {[%clk 0:02:10.6]} 18... fxe6 {[%clk 0:00:53.5]} 19.
Rcd1 {[%clk 0:02:09.6]} 19... e5 {[%clk 0:00:47]} 20. Ne2 {[%clk 0:02:05]} 20...
b5 {[%clk 0:00:47.2]} 21. cxb5 {[%clk 0:01:52.8]} 21... axb5 {[%clk 0:00:48.1]}
22. Bb6 {[%clk 0:01:52.5]} 22... Rc2 {[%clk 0:00:41.3]} 23. a5 {[%clk
0:01:52.3]} 23... e4 {[%clk 0:00:41.2]} 24. Qe3 {[%clk 0:01:49.8]} 24... Qf5
{[%clk 0:00:40.8]} 25. Nd4 {[%clk 0:01:48.6]} 25... Nd5 {[%clk 0:00:35.9]} 26.
Nxf5 {[%clk 0:01:48.7]} 26... Nxe3 {[%clk 0:00:36.1]} 27. Nxe3 {[%clk
0:01:49.6]} 1-0

[Event "Late-Titled-Tuesday-Blitz-September-12-2023"]
[Site "Chess.com"]
[Date "2023.09.12"]
[Round "1"]
[White "dcremisi"]
[Black "cukin84"]
[Result "1-0"]
[WhiteElo "2542"]
[BlackElo "2217"]
[TimeControl "180+1"]
[EndTime "14:05:00 PDT"]
[Termination "dcremisi won by resignation"]

1. d4 {[%clk 0:03:00.9]} 1... f5 {[%clk 0:02:58.7]} 2. Nc3 {[%clk 0:03:00.3]}
2... g6 {[%clk 0:02:57.8]} 3. e4 {[%clk 0:03:00.3]} 3... fxe4 {[%clk 0:02:57.6]}
4. Nxe4 {[%clk 0:03:01.2]} 4... d5 {[%clk 0:02:56.6]} 5. Ng5 {[%clk 0:03:00.6]}
5... Nf6 {[%clk 0:02:52.1]} 6. N1f3 {[%clk 0:03:00]} 6... Bg7 {[%clk 0:02:52.1]}
7. Bd3 {[%clk 0:03:00]} 7... Bf5 {[%clk 0:02:43]} 8. Bxf5 {[%clk 0:02:58.9]}
8... gxf5 {[%clk 0:02:42.8]} 9. Ne6 {[%clk 0:02:57.5]} 9... Qd6 {[%clk 0:02:38]}
10. Nxg7+ {[%clk 0:02:57.1]} 10... Kf8 {[%clk 0:02:35.1]} 11. Nxf5 {[%clk
0:02:56.4]} 11... Qe6+ {[%clk 0:02:31.2]} 12. Ne3 {[%clk 0:02:56.5]} 12... Nc6
{[%clk 0:02:27.9]} 13. O-O {[%clk 0:02:56.3]} 13... Rg8 {[%clk 0:02:26.8]} 14.
Kh1 {[%clk 0:02:53.5]} 14... Ne4 {[%clk 0:02:19.7]} 15. c4 {[%clk 0:02:47.7]}
15... Qg6 {[%clk 0:02:10.1]} 16. cxd5 {[%clk 0:02:41.4]} 16... Nb4 {[%clk
0:02:08]} 17. Ne5 {[%clk 0:02:36.5]} 17... Qg5 {[%clk 0:02:03.5]} 18. Qf3+
{[%clk 0:02:32.8]} 18... Nf6 {[%clk 0:01:59.8]} 19. Nf5 {[%clk 0:02:28.2]} 19...
Qh5 {[%clk 0:01:13.3]} 20. Qxh5 {[%clk 0:02:19.8]} 20... Nxh5 {[%clk 0:01:13]}
21. Bh6+ {[%clk 0:02:19.7]} 21... Ke8 {[%clk 0:01:12.3]} 22. Rae1 {[%clk
0:02:17.8]} 22... Nxd5 {[%clk 0:01:07.7]} 23. Ne3 {[%clk 0:02:06.8]} 23... Ndf6
{[%clk 0:01:05.8]} 24. h4 {[%clk 0:02:02.8]} 24... Ng7 {[%clk 0:00:56.2]} 25.
Bxg7 {[%clk 0:02:02.5]} 25... Rxg7 {[%clk 0:00:56.1]} 26. Nf5 {[%clk 0:02:02.8]}
26... Rg8 {[%clk 0:00:53.9]} 27. Nf3 {[%clk 0:01:53.6]} 27... Nd5 {[%clk
0:00:49.2]} 28. Re5 {[%clk 0:01:53.3]} 28... c6 {[%clk 0:00:48.2]} 29. Rfe1
{[%clk 0:01:53.4]} 29... Rg4 {[%clk 0:00:33.6]} 30. Nxe7 {[%clk 0:01:51.7]}
30... Nxe7 {[%clk 0:00:32.9]} 31. Rxe7+ {[%clk 0:01:51.7]} 31... Kf8 {[%clk
0:00:33.3]} 32. Rxh7 {[%clk 0:01:50.2]} 32... Kg8 {[%clk 0:00:32.9]} 33. Ree7
{[%clk 0:01:49.9]} 1-0